fUSD/lending_fUSD_20241105
["ID","MTS","AMOUNT","RATE_DAILY","PERIOD"]
[341352172,1730819450203,-1527.97,0.00033698,2]
[341352173,1730819450212,-7233.52513498,0.00033698,2]
[341352174,1730819450222,-530.49263608,0.00033698,2]
[341352175,1730819450232,-1898.63113744,0.00033698,2]
[341352176,1730819450243,-1595.49528226,0.00033698,2]
[341352177,1730819450253,-1009.4354118,0.00033698,2]
[341352178,1730819450264,-863.36609705,0.00033698,2]
[341352179,1730819450273,-1536.57591056,0.00033698,2]
[341352180,1730819450283,-1000.0,0.00033938,2]
[341352181,1730819450292,-997.1,0.0003402,2]
[341352182,1730819450302,-307.57,0.0003435,2]
[341352183,1730819450312,-1148.589926,0.0003503,2]
[341352184,1730819450322,-1275.0,0.000352,2]
[341352185,1730819450333,-1000.0,0.00035616,2]
[341352186,1730819450342,-200.0,0.00035621,2]
[341352187,1730819450352,-998.0,0.00035721,3]
[341352188,1730819450362,-1000.0,0.00035799,2]
[341352189,1730819450372,-153.24,0.00036207,120]
[341352190,1730819450381,-999.0,0.00036301,120]
[341352191,1730819450395,-307.57,0.00036614,2]
[341352192,1730819450404,-500.0,0.00036712,14]
[341352193,1730819450414,-999.0,0.00036986,120]
[341352194,1730819450424,-999.0,0.00037671,120]
[341352195,1730819450434,-235.33,0.0003775,120]
[341352196,1730819450443,-841.95074381,0.00038,120]
[341352197,1730819450453,-2000.0,0.00038,31]
[341352198,1730819450463,-926.93852477,0.00038356,2]
[341352199,1730819450473,-999.0,0.00038356,120]
[341352200,1730819450483,-14570.2,0.00038356,2]
[341352201,1730819450492,-307.57,0.00038878,2]
[341352202,1730819450503,-999.0,0.00039041,120]
[341352203,1730819450512,-1197.01923871,0.00039221,4]
[341352204,1730819450522,-500.0,0.00039643,2]
[341352205,1730819450532,-500.0,0.00039643,2]
[341352206,1730819450542,-500.0,0.00039643,2]
[341352207,1730819450552,-158.62,0.00039671,2]
[341352208,1730819450563,-999.0,0.00039726,120]
[341352209,1730819450573,-316.43600241,0.000398,2]
[341352210,1730819450583,-596.2233766,0.000398,2]
[341352211,1730819450593,-715.99689567,0.0003987,2]
[341352212,1730819450603,-1852.07,0.00039879,2]
[341352213,1730819450613,-1852.07,0.00039879,2]
[341352214,1730819450623,-1852.07,0.00039879,2]
[341352215,1730819450634,-1852.07,0.00039879,2]
[341352216,1730819450646,-1852.07,0.00039879,2]
[341352217,1730819450656,-1852.07,0.00039879,2]
[341352218,1730819450666,-1852.07,0.00039879,2]
[341352219,1730819450676,-1852.07,0.00039879,2]
[341352220,1730819450685,-1852.07,0.00039879,2]
[341352221,1730819450696,-1852.07,0.00039879,2]
[341352222,1730819450705,-1852.07,0.00039879,2]
[341352223,1730819450715,-1852.07,0.00039879,2]
[341352224,1730819450724,-1852.07,0.00039879,2]
[341352225,1730819450734,-1852.07,0.00039879,2]
[341352226,1730819450743,-1852.07,0.00039879,2]
[341352227,1730819450752,-1852.18753165,0.00039879,2]
[341352228,1730819450762,-3322959.23407159,0.0003988,120]
[341352229,1730819450865,-166860.64738868,0.0003988,120]
[341352230,1730819450874,-170.83,0.000399,14]
[341352231,1730819450885,-293.84,0.000399,30]
[341352232,1730819450898,-188.11,0.0003998,30]
[341352233,1730819450907,-153.24,0.00039983,120]
[341352234,1730819450917,-186.0,0.0003999,30]
[341352235,1730819450926,-841.95074381,0.0004,120]
[341352236,1730819450935,-500.0,0.0004,120]
[341352237,1730819450945,-153.3,0.0004,2]
[341352238,1730819450955,-153.3,0.0004,2]
[341352239,1730819450965,-153.3,0.0004,2]
[341352240,1730819450976,-999.0,0.0004041,120]
[341352241,1730819450987,-150.0,0.00041045,2]
[341352242,1730819450996,-999.0,0.00041095,120]
[341352243,1730819451006,-157.0,0.00041096,2]
[341352244,1730819451015,-150.0,0.00041096,2]
[341352245,1730819451025,-307.57,0.00041142,2]
[341352246,1730819451034,-150.0,0.00041311,2]
[341352247,1730819451046,-1000.0,0.00041324,3]
[341352248,1730819451055,-150.0,0.00041352,2]
[341352249,1730819451064,-150.0,0.00041361,2]
[341352250,1730819451075,-1000.0,0.0004137,2]
[341352251,1730819451086,-150.0,0.00041392,2]
[341352252,1730819451095,-150.0,0.0004145,2]
[341352253,1730819451105,-150.0,0.00041618,2]
[341352254,1730819451115,-150.0,0.00041686,2]
[341352255,1730819451125,-4072.25893757,0.000417,117]
[341352256,1730819451134,-150.0,0.00041703,2]
[341352257,1730819451146,-150.0,0.0004171,2]
[341352258,1730819451156,-999.0,0.0004178,120]
[341352259,1730819451165,-150.0,0.00041801,2]
[341352260,1730819451175,-293.84,0.000419,30]
[341352261,1730819451184,-150.0,0.00041945,2]
[341352262,1730819451193,-1500.0,0.00042,31]
[341352263,1730819451203,-150.0,0.00042177,2]
[341352264,1730819451212,-575.82445209,0.00042336,14]
[341352265,1730819451221,-500.0,0.00042383,120]
[341352266,1730819451231,-577.808541,0.00042383,120]
[341352267,1730819451240,-500.0,0.00042383,120]
[341352268,1730819451250,-200.0,0.00042383,120]
[341352269,1730819451260,-150.67525503,0.00042465,120]
[341352270,1730819451271,-2000.0,0.00043,30]
[341352271,1730819451281,-2033.8222,0.00043,30]
[341352272,1730819451290,-1683.90148762,0.00043,120]
[341352273,1730819451300,-2000.0,0.00043,30]
[341352274,1730819451309,-2000.0,0.00043,30]
[341352275,1730819451318,-2000.0,0.00043099,30]
[341352276,1730819451327,-662.12734,0.000432,2]
[341352277,1730819451337,-150.0,0.00043259,2]
[341352278,1730819451346,-316.43600241,0.000433,2]
[341352279,1730819451356,-2081.14,0.00043336,30]
[341352280,1730819451365,-1000.0,0.00043336,30]
[341352281,1730819451377,-841.95074381,0.00043336,120]
[341352282,1730819451386,-499.170634,0.00043336,30]
[341352283,1730819451400,-4929.61142739,0.00043336,120]
[341352284,1730819451410,-3000.0,0.00043336,120]
[341352285,1730819451419,-307.57,0.00043405,2]
[341352286,1730819451429,-11815.41658411,0.00043481,2]
[341352287,1730819451439,-293.84,0.000435,30]
[341352288,1730819451449,-500.0,0.00043561,120]
[341352289,1730819451459,-702.0,0.000436,33]
[341352290,1730819451469,-1383.25,0.000436,2]
[341352291,1730819451480,-700.0,0.00043687,16]
[341352292,1730819451490,-700.0,0.00043687,16]
[341352293,1730819451500,-700.0,0.00043687,16]
[341352294,1730819451510,-700.0,0.00043687,16]
[341352295,1730819451519,-700.0,0.00043687,16]
[341352296,1730819451529,-153.24,0.0004376,120]
[341352297,1730819451538,-833.883323,0.000438,30]
[341352298,1730819451548,-1111.844431,0.000438,30]
[341352299,1730819451557,-1389.805539,0.000438,30]
[341352300,1730819451567,-1667.766646,0.000438,30]
[341352301,1730819451576,-542933.2492618,0.000438,60]
[341352302,1730819451588,-155086.92056252,0.000438,60]
[341352303,1730819451599,-52952.90112601,0.000438,60]
[341352304,1730819451610,-2019.0616523,0.000438,60]
[341352305,1730819451621,-262.61055778,0.000438,60]
[341352306,1730819451634,-1798.7722616,0.000438,60]
[341352307,1730819451649,-269.2091773,0.000438,60]
[341352308,1730819451669,-1969.8482279,0.000438,60]
[341352309,1730819451738,-502.95995113,0.000247,2]
[341352310,1730819451748,-15130.338181,0.000438,60]
[341352311,1730819451830,-8304.811177,0.000438,60]
[341352312,1730819451846,-19177.35819731,0.000438,60]
[341352313,1730819451858,-710.28,0.000438,60]
[341352314,1730819451869,-1601.9999994,0.000438,60]
[341352315,1730819451881,-21944.4332842,0.000438,60]
[341352316,1730819451893,-6570.92501146,0.000438,60]
[341352317,1730819451905,-4153.72334499,0.000438,60]
[341352318,1730819451916,-5096.49574534,0.000438,60]
[341352319,1730819451978,-596.22337658,0.000433,2]
[341352320,1730819451987,-2732.98215262,0.000438,60]
[341352321,1730819451999,-6811.86851595,0.000438,60]
[341352322,1730819452010,-1751.135,0.000438,60]
[341352323,1730819452021,-33576.56527789,0.000438,60]
[341352324,1730819452032,-1596.1797,0.000438,60]
[341352325,1730819452043,-692246.35846051,0.000438,60]
[341352326,1730819452053,-368.4315,0.000438,60]
[341352327,1730819452064,-1513.65499501,0.000438,60]
[341352328,1730819452075,-7120.0,0.000438,60]
[341352329,1730819452086,-258.25999998,0.000438,60]
[341352330,1730819452098,-3698.80056916,0.000438,60]
[341352331,1730819452108,-443.50737782,0.000438,60]
[341352332,1730819452121,-3228.78981461,0.000438,60]
[341352333,1730819452132,-14004.5,0.000438,60]
[341352334,1730819452145,-3060.50024723,0.000438,60]
[341352336,1730819521412,300.0,0.00019725,2]
[341352339,1730819754299,-423.0,0.000245,2]
[341352340,1730819761200,155.84,0.00015342,2]
[341352341,1730820060499,801.9967774,0.00027,30]
[341352342,1730820289478,158.57,0.00015342,2]
[341352344,1730820308620,40138.60110505,0.00016,2]
[341352346,1730820337233,737.66,0.0001599,3]
[341352491,1730820473568,346.42023507,0.00022,120]
[341352493,1730820522748,5942.13898753,0.00024,30]
[341352494,1730820523205,373.02108111,0.00025,60]
[341352495,1730820523749,16849.42729113,0.0002509,120]
[341352530,1730820631842,-3483.48,0.0001584,2]
[341352546,1730820632535,-4202.55286267,0.0001584,2]
[341352547,1730820632548,-167.96713733,0.0001584,2]
[341352548,1730820632559,-160.24236364,0.00015973,2]
[341352549,1730820632569,-500.0,0.00015973,2]
[341352550,1730820632578,-202.10445805,0.00015973,2]
[341352551,1730820632588,-160.24235955,0.00015973,2]
[341352552,1730820632597,-500.0,0.00015973,2]
[341352553,1730820632606,-3000.0,0.00015999,2]
[341352554,1730820632615,-500.0,0.00015999,2]
[341352555,1730820632625,-530.9909033,0.00015999,2]
[341352556,1730820632634,-500.0,0.00015999,2]
[341352557,1730820632643,-500.0,0.00015999,2]
[341352558,1730820632658,-325741.88587393,0.00016,2]
[341352559,1730820632669,-980.32921601,0.00016,2]
[341352560,1730820632681,-485.19410945,0.00016,2]
[341352561,1730820632692,-30930.89655914,0.00016,2]
[341352562,1730820632720,-3489.923082,0.00016,2]
[341352565,1730820637905,-1230.05999999,0.00016,2]
[341352569,1730820637916,-6798.80398316,0.00016,2]
[341352570,1730820638042,-7950.00000048,0.00016,2]
[341352571,1730820638275,-1209.06509046,0.00016,2]
[341352572,1730820638362,-1032866.03267488,0.00016,2]
[341352576,1730820639913,-293.84400722,0.00016,2]
[341352577,1730820639924,-327.67731091,0.00016,2]
[341352578,1730820640078,-338.913575,0.00016,2]
[341352579,1730820640136,-7836.07759306,0.00016,2]
[341352612,1730820643421,-255.60155116,0.00016,2]
[341352613,1730820643597,-4420.43498098,0.00016,2]
[341352614,1730820643609,-500.0,0.00016,2]
[341352615,1730820643623,-6947.25335999,0.00016,2]
[341352616,1730820643635,-2419.80336073,0.00016,2]
[341352617,1730820643660,-5272.63475873,0.00016,2]
[341352618,1730820643671,-1320.54667147,0.00016,2]
[341352619,1730820643705,-3479.55,0.00016,2]
[341352630,1730820645906,-76143.83283107,0.00016,2]
[341352631,1730820646021,-3503.994,0.00016,2]
[341352632,1730820646233,-495.59500456,0.00016,2]
[341352707,1730820752899,-501.59101247,0.00024,30]
[341352709,1730820982089,585.0,0.00016,3]
[341352710,1730821049762,-151.26,0.00024877,30]
[341352711,1730821049784,-44406.65089761,0.0002509,120]
[341352712,1730821049807,-220.22,0.00025413,120]
[341352714,1730821073176,-151.26,0.00027604,30]
[341352715,1730821084583,-170.83,0.000273,7]
[341352716,1730821084607,-176.31,0.000273,7]
[341352717,1730821084631,-200.0,0.00027397,7]
[341352718,1730821093086,-900.0,0.00029,30]
[341352719,1730821104792,-900.0,0.0003,31]
[341352720,1730821104814,-927.53868084,0.0003,15]
[341352721,1730821104838,-203.20010691,0.0003,30]
[341352722,1730821104864,-151.26,0.00030332,30]
[341352723,1730821104891,-900.0,0.00031,32]
[341352724,1730821143790,-155.95,0.00015342,2]
[341352725,1730821143813,-1173.161,0.0001568,2]
[341352726,1730821143836,-166.65682772,0.00015873,2]
[341352727,1730821143858,-5591.75989495,0.00015973,2]
[341352728,1730821143882,-160.2423633,0.00015973,2]
[341352729,1730821143904,-160.24235955,0.00015973,2]
[341352730,1730821143928,-37008.23655411,0.00016,2]
[341352731,1730821174377,-3669.71254742,0.00015938,2]
[341352732,1730821174403,-46330.28745258,0.00016,2]
[341352734,1730821432440,150.0,0.00016,3]
[341352735,1730821467536,150.0,0.00016011,5]
[341352736,1730821486620,150.0,0.00016011,5]
[341352737,1730821487629,150.0,0.00016011,5]
[341352856,1730821832140,-157.71,0.00015342,2]
[341352857,1730821832150,-333.31365544,0.00015838,2]
[341352858,1730821832161,-552.80105949,0.00015938,2]
[341352859,1730821832171,-62.19528507,0.00015999,2]
[341352860,1730821832219,-393.14454662,0.00015999,2]
[341352861,1730821832230,-1221.31043856,0.00015999,2]
[341352862,1730821832414,-5291.83368812,0.00015999,2]
[341352863,1730821832423,-6823.64857173,0.00016,2]
[341352864,1730821832442,-23402.19208259,0.00016,2]
[341352865,1730821832453,-1789.54181961,0.00016,2]
[341352866,1730821832464,-5294.4253598,0.00016,2]
[341352867,1730821832477,-2712.4233,0.00016,2]
[341352868,1730821832488,-1709.44790727,0.00016,2]
[341352869,1730821832499,-1129.42207152,0.00016,2]
[341352870,1730821832563,-268.07010932,0.00016,2]
[341352871,1730821832575,-1378.29577402,0.00016,2]
[341352872,1730821832585,-427.51880542,0.00016,2]
[341352892,1730821838093,-6783.76622055,0.00016,2]
[341352893,1730821838106,-489.55999999,0.00016,2]
[341352894,1730821838117,-1281.5,0.00016,2]
[341352895,1730821838203,-1140.474,0.00016,2]
[341352896,1730821838215,-2454.80223776,0.00016,2]
[341352897,1730821838288,-55403.03730705,0.00016,2]
[341352898,1730821838300,-5995.274,0.00016,2]
[341352899,1730821838312,-1032879.39253098,0.00016,2]
[341352900,1730821838376,-1056.81499998,0.00016,2]
[341352901,1730821838387,-580.70497735,0.00016,2]
[341352902,1730821838399,-338.18,0.00016,2]
[341353022,1730821840187,-689.24141374,0.00016,2]
[341353023,1730821840199,-6271.071674,0.00016,2]
[341353024,1730821840285,-411.58419646,0.00016,2]
[341353025,1730821840297,-306.41167079,0.00016,2]
[341353026,1730821840309,-283.7363514,0.00016,2]
[341353027,1730821840392,-4132.84445775,0.00016,2]
[341353028,1730821840403,-275.25204732,0.00016,2]
[341353057,1730821843598,-21945.3781397,0.00016,2]
[341353058,1730821843679,-229139.80996111,0.00016,2]
[341353059,1730821843763,-20931.03626882,0.00016,2]
[341353060,1730821843777,-2090.04,0.00016,2]
[341353061,1730821843990,-2438.09546023,0.00016,2]
[341353062,1730821844002,-5648.83633462,0.00016,2]
[341353276,1730821846094,-27381.50681971,0.00016,2]
[341353284,1730821846174,-609.36332001,0.00016,2]
[341353287,1730821846190,-239582.23533174,0.00016,2]
[341353311,1730821846443,-53368.50095998,0.00016,2]
[341353314,1730821846454,-34994.57305799,0.00016,2]
[341353316,1730821846470,-208112.65937594,0.00016,2]
[341353320,1730821846492,-490.3,0.00016,2]
[341353322,1730821846503,-332.08741669,0.00016,2]
[341353491,1730822249849,200.0,0.000157,5]
[341353492,1730822251987,500.0,0.000158,5]
[341353493,1730822254100,800.0,0.000159,5]
[341353496,1730822475035,150.0,0.0002376,30]
[341353523,1730823032046,-156.92,0.00015342,2]
[341353526,1730823032055,-119.8559711,0.00015342,2]
[341353530,1730823032097,-38.7640289,0.00015342,2]
[341353531,1730823032106,-155.84,0.00015342,2]
[341353532,1730823032117,-102.40124833,0.0001537,2]
[341353533,1730823032153,-3595.95262906,0.0001537,2]
[341353534,1730823032319,-604.64612261,0.0001537,2]
[341353535,1730823032327,-5942.85387739,0.00015674,2]
[341353536,1730823032339,-4264.18008637,0.00015674,2]
[341353537,1730823032347,-423.97700768,0.00015674,2]
[341353538,1730823032357,-903.32843612,0.000159,2]
[341353539,1730823032366,-561.24242938,0.0001591,2]
[341353540,1730823032375,-201.07903233,0.0001591,2]
[341353541,1730823032385,-5116.17239675,0.0001599,2]
[341353659,1730823033762,-21386.54189692,0.0001599,2]
[341353936,1730823036647,899.22,0.0001599,3]
[341353938,1730823038176,-317.98275576,0.0001571,2]
[341353939,1730823038186,-5516.84970617,0.0001599,2]
[341353940,1730823038195,-223.66228822,0.0001599,2]
[341353941,1730823038204,-406.46554274,0.00015999,2]
[341353942,1730823038214,-500.0,0.00015999,2]
[341353943,1730823038224,-220.17133352,0.00015999,2]
[341353944,1730823038233,-144648.56554616,0.00016,2]
[341353945,1730823038248,-3590.13138443,0.00016,2]
[341353946,1730823038285,-41636.05321587,0.00016,2]
[341353947,1730823038296,-1032893.49903583,0.00016,2]
[341353948,1730823038307,-551.15361802,0.00016,2]
[341353949,1730823038318,-1432.37124919,0.00016,2]
[341353950,1730823038496,-1949.56414352,0.00016,2]
[341353951,1730823038508,-6590.00140263,0.00016,2]
[341353952,1730823038604,-696.30396,0.00016,2]
[341353986,1730823040229,-1072.25620828,0.00016,2]
[341353987,1730823040388,-6692.98475639,0.00016,2]
[341354005,1730823043379,-229139.80996111,0.00016,2]
[341354006,1730823043433,-468.7993659,0.00016,2]
[341354007,1730823043488,-20942.85215254,0.00016,2]
[341354008,1730823043499,-3318.476273,0.00016,2]
[341354098,1730823046265,-854038.50339495,0.00016,2]
[341354099,1730823046275,-1000.0,0.0001601,2]
[341354100,1730823046285,-201.44,0.0001601,2]
[341354101,1730823046294,-5625.4,0.0001601,2]
[341354102,1730823046303,-299.99,0.00016438,4]
[341354103,1730823046312,-2885.16,0.00016438,2]
[341354104,1730823046322,-5702.67,0.00016438,2]
[341354105,1730823046331,-249.60981452,0.00016438,2]
[341354106,1730823046340,-173.62,0.00016768,2]
[341354107,1730823046349,-625.34,0.00016768,2]
[341354108,1730823046359,-150.99,0.00016768,2]
[341354109,1730823046368,-367.12,0.00018727,2]
[341354110,1730823046377,-561.24242937,0.00019342,2]
[341354111,1730823046386,-209.41837624,0.000199,2]
[341354112,1730823046395,-2650.72,0.00020075,2]
[341354113,1730823046405,-201.07903226,0.00020323,2]
[341354114,1730823046414,-500.0,0.00020337,2]
[341354115,1730823046423,-2650.72,0.00020397,2]
[341354116,1730823046432,-344.71,0.00020522,2]
[341354117,1730823046442,-200.0,0.00020533,2]
[341354118,1730823046451,-1180.42,0.00020569,2]
[341354119,1730823046460,-409.67,0.00020594,2]
[341354120,1730823046468,-156.47,0.00020614,2]
[341354121,1730823046478,-1811.33,0.0002062,2]
[341354122,1730823046487,-2650.72,0.0002072,2]
[341354123,1730823046497,-1000.0,0.00020724,2]
[341354124,1730823046506,-4080.36,0.00020752,2]
[341354125,1730823046515,-250.0,0.00020781,2]
[341354126,1730823046525,-200.0,0.000208,2]
[341354127,1730823046534,-1377.83,0.00020835,2]
[341354128,1730823046543,-16408.36,0.00020861,2]
[341354129,1730823046552,-459.14,0.00020904,2]
[341354130,1730823046561,-250.0,0.00020919,2]
[341354131,1730823046570,-340.55,0.00020921,2]
[341354132,1730823046579,-500.0,0.00020973,2]
[341354134,1730823046589,-367.12,0.00020991,2]
[341354136,1730823046598,-1400.57713712,0.00021,2]
[341354138,1730823046608,-250.0,0.00021,2]
[341354140,1730823046617,-350.68,0.00021021,2]
[341354142,1730823046626,-5621.75,0.00021021,2]
[341354144,1730823046635,-2650.72,0.00021042,2]
[341354146,1730823046644,-438.64,0.00021096,2]
[341354148,1730823046654,-237.66,0.00021116,3]
[341354150,1730823046663,-2650.72,0.00021365,2]
[341354152,1730823046672,-187.96,0.00021518,2]
[341354154,1730823046685,-23900.0,0.00021522,2]
[341354156,1730823046694,-2650.72,0.00021687,2]
[341354158,1730823046702,-153.96,0.00021704,2]
[341354160,1730823046711,-179.84,0.00021918,2]
[341354162,1730823046721,-192.36,0.00021918,2]
[341354164,1730823046729,-250.0,0.00021918,2]
[341354166,1730823046738,-303.72,0.00021964,2]
[341354168,1730823046747,-6609.04789358,0.00022,2]
[341354169,1730823046757,-2650.72,0.0002201,2]
[341354172,1730823046768,-245.93,0.000223,2]
[341354174,1730823046778,-2650.72,0.00022332,2]
[341354176,1730823046788,-1000.0,0.00022342,2]
[341354178,1730823046799,-161.276713,0.000225,2]
[341354180,1730823046809,-187.96,0.00022594,2]
[341354182,1730823046818,-561.24242937,0.00022774,2]
[341354184,1730823046827,-300.0,0.00023,2]
[341354186,1730823046836,-367.12,0.00023255,2]
[341354188,1730823046845,-1000.0,0.00023315,2]
[341354190,1730823046855,-169.38,0.00023376,2]
[341354192,1730823046865,-187.96,0.0002367,2]
[341354194,1730823046874,-13554.60996257,0.00024569,2]
[341354196,1730823046884,-247.17,0.00024658,4]
[341354198,1730823046892,-170.83,0.000247,7]
[341354200,1730823046901,-158.68,0.000247,7]
[341354202,1730823046910,-201.07903226,0.00024735,2]
[341354204,1730823046919,-187.96,0.00024746,2]
[341354206,1730823046928,-1500.0,0.00024847,2]
[341354208,1730823046937,-216.87,0.00024877,30]
[341354209,1730823046945,-35000.0,0.00024891,2]
[341354210,1730823046954,-35000.0,0.000249,2]
[341354211,1730823046964,-2076.71872242,0.00025,2]
[341354212,1730823046975,-350.0,0.00025,2]
[341354213,1730823046984,-367.12,0.00025519,2]
[341354214,1730823046993,-187.96,0.00025821,2]
[341354215,1730823047002,-1000.0,0.00025906,2]
[341354216,1730823047011,-561.24242937,0.00026206,2]
[341354217,1730823047020,-167.14,0.00026298,2]
[341354218,1730823047029,-157.71,0.00026401,2]
[341354220,1730823047038,-400.0,0.00027,2]
[341354222,1730823047049,-2193.35162766,0.0002728,2]
[341354488,1730823876827,2019.24572507,0.0002376,30]
[341354504,1730824077708,10000.0,0.0002376,30]
[341354576,1730824232460,-157.11,0.00015342,2]
[341354577,1730824232470,-157.71,0.00015342,2]
[341354578,1730824232480,-297.63031664,0.00015473,2]
[341354579,1730824232489,-20.07273472,0.000155,2]
[341354580,1730824232500,-4986.07479773,0.000155,2]
[341354581,1730824232516,-3023.27782062,0.000155,2]
[341354582,1730824232527,-420.41495303,0.000155,2]
[341354583,1730824232538,-293.78839266,0.000155,2]
[341354584,1730824232573,-3403.73811044,0.000155,2]
[341354589,1730824238405,-1223.08800696,0.000155,2]
[341354590,1730824238461,-1169.55400002,0.000155,2]
[341354591,1730824238679,-1290.12615958,0.000155,2]
[341354593,1730824242851,-11040.97844029,0.000155,2]
[341354594,1730824242865,-2210.13618,0.000155,2]
[341354595,1730824242962,-8295.0,0.000155,2]
[341354596,1730824242973,-9389.99999865,0.000155,2]
[341354611,1730824243461,-2801.29688911,0.000155,2]
[341354620,1730824246618,-705.8,0.000155,2]
[341354621,1730824246837,-1735.0,0.000155,2]
[341354628,1730824341669,200.6204452,0.00015999,5]
[341354629,1730824341711,1080.48836848,0.00015999,5]
[341354631,1730824348380,154.0,0.00016,3]
[341354632,1730824351100,900.0,0.000157,5]
[341354633,1730824353228,1900.0,0.000158,5]
[341354634,1730824355449,2800.0,0.000159,5]
[341354635,1730824412369,2000.95199978,0.0002376,30]
[341354638,1730824942707,-317.98275576,0.00015095,2]
[341354639,1730824942729,-156.78,0.00015342,2]
[341354640,1730824942750,-60786.65351619,0.000155,2]
[341354641,1730824942772,-500.0,0.00015973,2]
[341354642,1730824942793,-500.0,0.00015973,2]
[341354643,1730824942814,-214.6,0.0001599,2]
[341354644,1730824942853,-214.6,0.0001599,2]
[341354645,1730824942874,-214.6,0.0001599,2]
[341354646,1730824942894,-214.6,0.0001599,2]
[341354647,1730824942915,-214.6,0.0001599,2]
[341354648,1730824942937,-500.0,0.00015999,2]
[341354649,1730824942959,-500.0,0.00015999,2]
[341354650,1730824942981,-425.81356578,0.00015999,2]
[341354651,1730824943003,-500.0,0.00015999,2]
[341354652,1730824943024,-393.04933013,0.00015999,2]
[341354653,1730824943046,-500.0,0.00015999,2]
[341354654,1730824943069,-500.0,0.00015999,2]
[341354655,1730824943093,-500.0,0.00015999,2]
[341354656,1730824943115,-433.26092873,0.00015999,2]
[341354657,1730824943137,-500.0,0.00015999,2]
[341354658,1730824943158,-500.0,0.00015999,2]
[341354659,1730824943180,-500.0,0.00015999,2]
[341354660,1730824943201,-500.0,0.00015999,2]
[341354661,1730824943229,-86194.45990341,0.00016,2]
[341354662,1730824968309,-50000.0,0.00016,2]
[341354663,1730824968874,-50000.0,0.00016,2]
[341354664,1730824969516,-50000.0,0.00016,2]
[341354665,1730824979396,-399.42687174,0.00015973,2]
[341354666,1730824979422,-49600.57312826,0.00016,2]
[341354943,1730825221396,600.0,0.000157,5]
[341354944,1730825223512,1300.0,0.000158,5]
[341354945,1730825225660,2000.0,0.000159,5]
[341355000,1730825431484,-156.92,0.00015342,2]
[341355002,1730825431493,-425.63374272,0.00015745,2]
[341355004,1730825431502,-748.05961709,0.00015999,2]
[341355023,1730825431664,-84.51336364,0.00015999,2]
[341355025,1730825431674,-25588.31132466,0.00016,2]
[341355027,1730825431691,-1300.0,0.00016,2]
[341355029,1730825431702,-50706.69621696,0.00016,2]
[341355030,1730825431713,-4945.73709976,0.00016,2]
[341355059,1730825431978,-0.73240995,0.00016,2]
[341355061,1730825431989,-1471.67541498,0.00016,2]
[341355068,1730825432043,-6370.22879068,0.00016,2]
[341355070,1730825432054,-7853.83965434,0.00016,2]
[341355072,1730825432066,-1019.55718188,0.00016,2]
[341355085,1730825435376,-14570.02965777,0.00016,2]
[341355086,1730825435387,-6236.66397548,0.00016,2]
[341355087,1730825435429,-7640.33142,0.00016,2]
[341355088,1730825435443,-906.40711247,0.00016,2]
[341355089,1730825435455,-700.0,0.00016,2]
[341355106,1730825437570,-681.34480437,0.00015944,2]
[341355108,1730825437580,-1032212.15423146,0.00016,2]
[341355109,1730825437626,-1760.95994762,0.00016,2]
[341355110,1730825437736,-5286.80000007,0.00016,2]
[341355111,1730825437748,-12696.159648,0.00016,2]
[341355112,1730825437802,-916865.93015005,0.00016,2]
[341355113,1730825437811,-187.53314648,0.00016044,2]